[Event "Late-Titled-Tuesday-Blitz-April-02-2024"]
[Site "Chess.com"]
[Date "2024.04.02"]
[Round "9"]
[White "PapaieDudu"]
[Black "BillCoe"]
[Result "1-0"]
[WhiteElo "2386"]
[BlackElo "2137"]
[TimeControl "180+1"]
[EndTime "15:42:49 PDT"]
[Termination "PapaieDudu won on time"]

1. Nf3 {[%clk 0:03:00.9]} 1... c5 {[%clk 0:02:59.8]} 2. e3 {[%clk 0:03:00.9]}
2... g6 {[%clk 0:03:00.2]} 3. d4 {[%clk 0:03:01.5]} 3... Bg7 {[%clk 0:02:59.1]}
4. c4 {[%clk 0:03:01.9]} 4... cxd4 {[%clk 0:02:58.7]} 5. exd4 {[%clk 0:03:02.8]}
5... d6 {[%clk 0:02:59]} 6. Nc3 {[%clk 0:03:03.7]} 6... Nf6 {[%clk 0:02:59]} 7.
Bd3 {[%clk 0:03:04.6]} 7... O-O {[%clk 0:02:58.9]} 8. O-O {[%clk 0:03:05.5]}
8... a6 {[%clk 0:02:58.7]} 9. Qe2 {[%clk 0:03:05.8]} 9... Nc6 {[%clk 0:02:58.8]}
10. Rd1 {[%clk 0:03:06.1]} 10... Bg4 {[%clk 0:02:56.3]} 11. Be3 {[%clk
0:03:06.8]} 11... Rb8 {[%clk 0:02:50.6]} 12. h3 {[%clk 0:03:07]} 12... Bd7
{[%clk 0:02:49.1]} 13. d5 {[%clk 0:03:06.7]} 13... Nb4 {[%clk 0:02:44]} 14. Bb1
{[%clk 0:03:06.7]} 14... a5 {[%clk 0:02:44.1]} 15. Nd4 {[%clk 0:02:54.7]} 15...
Na6 {[%clk 0:02:41.6]} 16. b3 {[%clk 0:02:52.4]} 16... Nc5 {[%clk 0:02:41]} 17.
a3 {[%clk 0:02:50.6]} 17... Qc8 {[%clk 0:02:27.1]} 18. Bc2 {[%clk 0:02:47.8]}
18... Bxh3 {[%clk 0:02:23.2]} 19. gxh3 {[%clk 0:02:48.2]} 19... Qxh3 {[%clk
0:02:23.3]} 20. Qf1 {[%clk 0:02:46]} 20... Qh5 {[%clk 0:02:16.2]} 21. Qe2 {[%clk
0:02:39.2]} 21... Qh3 {[%clk 0:02:11.3]} 22. Qf3 {[%clk 0:02:37.5]} 22... Qh4
{[%clk 0:02:03.1]} 23. Rab1 {[%clk 0:02:28.3]} 23... Ncd7 {[%clk 0:02:03]} 24.
Qg3 {[%clk 0:02:22.4]} 24... Qh5 {[%clk 0:02:02.2]} 25. Bd3 {[%clk 0:02:17.1]}
25... Ne5 {[%clk 0:01:37.7]} 26. Be2 {[%clk 0:02:13.7]} 26... Nfg4 {[%clk
0:01:37.8]} 27. f4 {[%clk 0:02:08.5]} 27... f5 {[%clk 0:01:26.6]} 28. fxe5
{[%clk 0:02:08.6]} 28... Bxe5 {[%clk 0:01:23.8]} 29. Bxg4 {[%clk 0:02:08.1]}
29... fxg4 {[%clk 0:01:17.3]} 30. Qg2 {[%clk 0:02:07.5]} 30... Bxd4 {[%clk
0:01:05.8]} 31. Rxd4 {[%clk 0:01:57.3]} 31... Rf3 {[%clk 0:01:05.4]} 32. Re1
{[%clk 0:01:41.5]} 32... Rbf8 {[%clk 0:00:52.1]} 33. Qxg4 {[%clk 0:01:21.7]}
33... Rh3 {[%clk 0:00:35.2]} 34. Qxh5 {[%clk 0:01:21.6]} 34... Rxh5 {[%clk
0:00:35.1]} 35. Ne4 {[%clk 0:01:20]} 35... Rf3 {[%clk 0:00:30]} 36. c5 {[%clk
0:01:03]} 36... Re5 {[%clk 0:00:20.5]} 37. cxd6 {[%clk 0:00:56.3]} 37... exd6
{[%clk 0:00:21.4]} 38. b4 {[%clk 0:00:43.8]} 38... h6 {[%clk 0:00:20.4]} 39.
Bxh6 {[%clk 0:00:38.6]} 39... Rxa3 {[%clk 0:00:19.8]} 40. Bf4 {[%clk 0:00:36.5]}
40... Rf5 {[%clk 0:00:15.1]} 41. Nxd6 {[%clk 0:00:36.6]} 41... Rh5 {[%clk
0:00:12.6]} 42. Re8+ {[%clk 0:00:33.6]} 42... Kh7 {[%clk 0:00:10.4]} 43. Be5
{[%clk 0:00:25.7]} 43... Rg5+ {[%clk 0:00:06.4]} 44. Kf2 {[%clk 0:00:23.7]}
44... Ra2+ {[%clk 0:00:05]} 45. Ke3 {[%clk 0:00:22.3]} 1-0

[Event "Late-Titled-Tuesday-Blitz-April-02-2024"]
[Site "Chess.com"]
[Date "2024.04.02"]
[Round "9"]
[White "GoValya"]
[Black "KetiTsatsalashvili"]
[Result "0-1"]
[WhiteElo "2248"]
[BlackElo "2416"]
[TimeControl "180+1"]
[EndTime "15:42:53 PDT"]
[Termination "KetiTsatsalashvili won on time"]

1. d4 {[%clk 0:03:00.9]} 1... Nf6 {[%clk 0:02:59.6]} 2. Nf3 {[%clk 0:03:00.8]}
2... e6 {[%clk 0:03:00.3]} 3. g3 {[%clk 0:03:01.1]} 3... d5 {[%clk 0:02:58.7]}
4. Bg2 {[%clk 0:03:01.1]} 4... Be7 {[%clk 0:02:55.9]} 5. O-O {[%clk 0:03:00.8]}
5... O-O {[%clk 0:02:56.4]} 6. c4 {[%clk 0:03:01.2]} 6... c6 {[%clk 0:02:56.9]}
7. Nc3 {[%clk 0:03:01]} 7... b6 {[%clk 0:02:54.6]} 8. b3 {[%clk 0:03:00.1]} 8...
Ba6 {[%clk 0:02:54.2]} 9. Ne5 {[%clk 0:02:54.9]} 9... Nfd7 {[%clk 0:02:53.5]}
10. cxd5 {[%clk 0:02:52.3]} 10... cxd5 {[%clk 0:02:48.6]} 11. Nd3 {[%clk
0:02:35.7]} 11... Nc6 {[%clk 0:02:35]} 12. e3 {[%clk 0:02:13.7]} 12... Nb4
{[%clk 0:02:34.8]} 13. Nxb4 {[%clk 0:02:03.3]} 13... Bxb4 {[%clk 0:02:35.7]} 14.
Ne2 {[%clk 0:02:03.4]} 14... Rc8 {[%clk 0:02:30.8]} 15. Bd2 {[%clk 0:02:00.5]}
15... Ba3 {[%clk 0:02:29]} 16. Re1 {[%clk 0:01:57.6]} 16... Qe7 {[%clk
0:02:27.8]} 17. Nf4 {[%clk 0:01:40.1]} 17... h6 {[%clk 0:02:27.6]} 18. e4 {[%clk
0:01:39.2]} 18... dxe4 {[%clk 0:02:25.5]} 19. Bxe4 {[%clk 0:01:40.1]} 19... Nf6
{[%clk 0:02:14.4]} 20. Bg2 {[%clk 0:01:32.3]} 20... Bb2 {[%clk 0:02:13.7]} 21.
d5 {[%clk 0:01:13.6]} 21... Bxa1 {[%clk 0:02:04.6]} 22. Qxa1 {[%clk 0:01:14.5]}
22... Qd6 {[%clk 0:01:49.7]} 23. Bc3 {[%clk 0:01:01.9]} 23... exd5 {[%clk
0:01:48.4]} 24. Be5 {[%clk 0:00:50.6]} 24... Qd8 {[%clk 0:01:41.9]} 25. Bxf6
{[%clk 0:00:31]} 25... Qxf6 {[%clk 0:01:42.8]} 26. Qxf6 {[%clk 0:00:30.6]} 26...
gxf6 {[%clk 0:01:43.7]} 27. Nxd5 {[%clk 0:00:31.1]} 27... Kg7 {[%clk 0:01:40.3]}
28. Ne7 {[%clk 0:00:22.8]} 28... Rc2 {[%clk 0:01:32.4]} 29. Nf5+ {[%clk
0:00:20.6]} 29... Kh8 {[%clk 0:01:27]} 30. Nxh6 {[%clk 0:00:19.5]} 30... Rxa2
{[%clk 0:01:25.4]} 31. Bd5 {[%clk 0:00:19.7]} 31... Bd3 {[%clk 0:01:07.8]} 32.
Re3 {[%clk 0:00:17.9]} 32... Bg6 {[%clk 0:01:04.4]} 33. Kg2 {[%clk 0:00:17.4]}
33... a5 {[%clk 0:01:02.1]} 34. h4 {[%clk 0:00:16]} 34... Kg7 {[%clk 0:01:02]}
35. Ng4 {[%clk 0:00:16]} 35... Rd2 {[%clk 0:01:00]} 36. Bc4 {[%clk 0:00:15]}
36... Rfd8 {[%clk 0:00:58]} 37. Nh2 {[%clk 0:00:12.1]} 37... R2d4 {[%clk
0:00:53.4]} 38. g4 {[%clk 0:00:09.3]} 38... a4 {[%clk 0:00:50.7]} 39. h5 {[%clk
0:00:07.6]} 39... Be4+ {[%clk 0:00:49.6]} 40. f3 {[%clk 0:00:07.7]} 40... Bc6
{[%clk 0:00:48.8]} 41. Kg3 {[%clk 0:00:06.2]} 41... a3 {[%clk 0:00:48.5]} 42. g5
{[%clk 0:00:04.2]} 42... fxg5 {[%clk 0:00:47]} 43. Ng4 {[%clk 0:00:04.3]} 43...
a2 {[%clk 0:00:44.3]} 44. h6+ {[%clk 0:00:04]} 44... Kh8 {[%clk 0:00:44.7]} 45.
Re1 {[%clk 0:00:03.9]} 45... Rd1 {[%clk 0:00:43.4]} 46. Re7 {[%clk 0:00:02.6]}
46... Be8 {[%clk 0:00:32.5]} 47. Nf6 {[%clk 0:00:01.8]} 47... a1=Q {[%clk
0:00:30.4]} 48. Nxe8 {[%clk 0:00:01.9]} 48... Rg1+ {[%clk 0:00:28.5]} 0-1

[Event "Late-Titled-Tuesday-Blitz-April-02-2024"]
[Site "Chess.com"]
[Date "2024.04.02"]
[Round "9"]
[White "IMRosen"]
[Black "Tugrik1969"]
[Result "1-0"]
[WhiteElo "2686"]
[BlackElo "2562"]
[TimeControl "180+1"]
[EndTime "15:42:56 PDT"]
[Termination "IMRosen won on time"]

1. d4 {[%clk 0:03:00.9]} 1... d5 {[%clk 0:02:59.5]} 2. Bf4 {[%clk 0:03:00.9]}
2... c5 {[%clk 0:02:58.6]} 3. Nc3 {[%clk 0:03:01]} 3... e6 {[%clk 0:02:45.9]} 4.
e4 {[%clk 0:02:54.8]} 4... cxd4 {[%clk 0:02:22.2]} 5. Qxd4 {[%clk 0:02:54.8]}
5... Nc6 {[%clk 0:02:22.2]} 6. Bb5 {[%clk 0:02:55.3]} 6... Bd7 {[%clk
0:02:22.3]} 7. Qd2 {[%clk 0:02:19.2]} 7... d4 {[%clk 0:02:04.1]} 8. Nce2 {[%clk
0:02:19.5]} 8... Bb4 {[%clk 0:01:50.2]} 9. c3 {[%clk 0:02:19.5]} 9... dxc3
{[%clk 0:01:48.4]} 10. bxc3 {[%clk 0:02:12.6]} 10... Be7 {[%clk 0:01:44.4]} 11.
Nf3 {[%clk 0:02:06.2]} 11... Nf6 {[%clk 0:01:43.4]} 12. e5 {[%clk 0:01:50.6]}
12... Nd5 {[%clk 0:01:42.2]} 13. O-O {[%clk 0:01:37.9]} 13... O-O {[%clk
0:01:24.9]} 14. c4 {[%clk 0:01:38.3]} 14... Nxf4 {[%clk 0:01:20.7]} 15. Qxf4
{[%clk 0:01:38.2]} 15... a6 {[%clk 0:01:13]} 16. Ba4 {[%clk 0:01:37.9]} 16...
Nxe5 {[%clk 0:01:04.9]} 17. Rad1 {[%clk 0:01:14.4]} 17... Nc6 {[%clk 0:01:04.1]}
18. Bxc6 {[%clk 0:01:14.1]} 18... bxc6 {[%clk 0:01:04]} 19. Ne5 {[%clk
0:01:13.3]} 19... Ra7 {[%clk 0:01:03.9]} 20. Nxc6 {[%clk 0:00:57.7]} 20... Bxc6
{[%clk 0:00:46.7]} 21. Rxd8 {[%clk 0:00:58.6]} 21... Rxd8 {[%clk 0:00:47.1]} 22.
h4 {[%clk 0:00:52.6]} 22... Rad7 {[%clk 0:00:45.2]} 23. h5 {[%clk 0:00:48.6]}
23... h6 {[%clk 0:00:45.4]} 24. Ng3 {[%clk 0:00:35.8]} 24... Bg5 {[%clk
0:00:39.5]} 25. Qe5 {[%clk 0:00:32.4]} 25... Bf6 {[%clk 0:00:35.6]} 26. Qa5
{[%clk 0:00:30.8]} 26... Bb7 {[%clk 0:00:27.4]} 27. Qb6 {[%clk 0:00:23.2]} 27...
Bd4 {[%clk 0:00:25.1]} 28. c5 {[%clk 0:00:18.3]} 28... Rc8 {[%clk 0:00:25.2]}
29. Rc1 {[%clk 0:00:18.6]} 29... Rc6 {[%clk 0:00:23.3]} 30. Qb4 {[%clk
0:00:16.2]} 30... e5 {[%clk 0:00:14]} 31. Ne4 {[%clk 0:00:16.1]} 31... Rc8
{[%clk 0:00:13.6]} 32. Nd2 {[%clk 0:00:08.7]} 32... Bd5 {[%clk 0:00:04.8]} 33.
Nb3 {[%clk 0:00:09.1]} 33... Rb7 {[%clk 0:00:04.7]} 34. Qa3 {[%clk 0:00:06.3]}
34... Bxb3 {[%clk 0:00:04.2]} 35. axb3 {[%clk 0:00:07.2]} 35... Rc6 {[%clk
0:00:03.9]} 36. b4 {[%clk 0:00:07.1]} 36... Kh7 {[%clk 0:00:03.1]} 37. Qd3+
{[%clk 0:00:06.5]} 37... Kg8 {[%clk 0:00:02.4]} 38. Qc4 {[%clk 0:00:07.1]} 38...
Rb5 {[%clk 0:00:02.1]} 39. Rc2 {[%clk 0:00:05.7]} 1-0

[Event "Late-Titled-Tuesday-Blitz-April-02-2024"]
[Site "Chess.com"]
[Date "2024.04.02"]
[Round "9"]
[White "NitaLucian"]
[Black "JaackCamel"]
[Result "1-0"]
[WhiteElo "2348"]
[BlackElo "2202"]
[TimeControl "180+1"]
[EndTime "15:42:57 PDT"]
[Termination "NitaLucian won on time"]

1. e4 {[%clk 0:02:57.1]} 1... e6 {[%clk 0:02:59.1]} 2. d3 {[%clk 0:02:54.9]}
2... d5 {[%clk 0:02:58.3]} 3. Nd2 {[%clk 0:02:55.8]} 3... c5 {[%clk 0:02:58]} 4.
Ngf3 {[%clk 0:02:55.4]} 4... Nc6 {[%clk 0:02:58]} 5. Be2 {[%clk 0:02:55.8]} 5...
Nf6 {[%clk 0:02:57.8]} 6. O-O {[%clk 0:02:56.2]} 6... g6 {[%clk 0:02:57.7]} 7.
c3 {[%clk 0:02:56.6]} 7... Bg7 {[%clk 0:02:57.4]} 8. e5 {[%clk 0:02:56.9]} 8...
Nd7 {[%clk 0:02:43.1]} 9. d4 {[%clk 0:02:56.4]} 9... cxd4 {[%clk 0:02:41]} 10.
cxd4 {[%clk 0:02:55.5]} 10... O-O {[%clk 0:02:35.5]} 11. Nb3 {[%clk 0:02:54.5]}
11... a5 {[%clk 0:01:59.5]} 12. Bg5 {[%clk 0:02:53.7]} 12... Qb6 {[%clk
0:01:52.4]} 13. Rb1 {[%clk 0:02:52.1]} 13... a4 {[%clk 0:01:50.9]} 14. Na1
{[%clk 0:02:51.9]} 14... Qa5 {[%clk 0:01:41.5]} 15. Bd2 {[%clk 0:02:41.8]} 15...
Qa7 {[%clk 0:01:39.1]} 16. Nc2 {[%clk 0:02:31.9]} 16... b5 {[%clk 0:01:37.9]}
17. a3 {[%clk 0:02:25.7]} 17... Ba6 {[%clk 0:01:32.3]} 18. Bc3 {[%clk
0:02:17.4]} 18... Nb6 {[%clk 0:01:29.5]} 19. Nb4 {[%clk 0:02:15.7]} 19... Rfc8
{[%clk 0:01:18.5]} 20. Nxc6 {[%clk 0:02:12.9]} 20... Rxc6 {[%clk 0:01:18]} 21.
Bb4 {[%clk 0:02:12.5]} 21... Nc4 {[%clk 0:01:15.1]} 22. Bc5 {[%clk 0:02:09.9]}
22... Rxc5 {[%clk 0:01:11.4]} 23. dxc5 {[%clk 0:02:09.8]} 23... Qxc5 {[%clk
0:01:11.5]} 24. Bxc4 {[%clk 0:02:09.1]} 24... bxc4 {[%clk 0:01:08.7]} 25. Re1
{[%clk 0:02:05.6]} 25... Bb5 {[%clk 0:01:06.1]} 26. Qd4 {[%clk 0:02:05.2]} 26...
Qc6 {[%clk 0:01:01.1]} 27. Rbc1 {[%clk 0:02:03.9]} 27... Rb8 {[%clk 0:01:00]}
28. Qd2 {[%clk 0:01:54.2]} 28... Qa6 {[%clk 0:00:59]} 29. Nd4 {[%clk 0:01:53.5]}
29... Be8 {[%clk 0:00:59.3]} 30. Rc3 {[%clk 0:01:46.3]} 30... Qb7 {[%clk
0:00:56.3]} 31. Re2 {[%clk 0:01:45.6]} 31... Qc7 {[%clk 0:00:55.1]} 32. Qf4
{[%clk 0:01:41.7]} 32... Qb6 {[%clk 0:00:47.1]} 33. Rh3 {[%clk 0:01:32.2]} 33...
Rc8 {[%clk 0:00:38.3]} 34. Qh4 {[%clk 0:01:27.6]} 34... h6 {[%clk 0:00:36.8]}
35. Rc3 {[%clk 0:01:23.8]} 35... Rb8 {[%clk 0:00:34]} 36. Qf4 {[%clk 0:01:17.2]}
36... Rc8 {[%clk 0:00:28.8]} 37. Qe3 {[%clk 0:01:16.6]} 37... Qb7 {[%clk
0:00:26.6]} 38. f4 {[%clk 0:01:07.4]} 38... Bf8 {[%clk 0:00:23.8]} 39. g4 {[%clk
0:01:05.7]} 39... Bc5 {[%clk 0:00:21.8]} 40. Rd2 {[%clk 0:01:04.8]} 40... Qb6
{[%clk 0:00:21]} 41. Kg2 {[%clk 0:01:02.4]} 41... Kg7 {[%clk 0:00:20.4]} 42. f5
{[%clk 0:01:00.2]} 42... gxf5 {[%clk 0:00:19]} 43. gxf5 {[%clk 0:01:00.3]} 43...
Kh7 {[%clk 0:00:18.7]} 44. f6 {[%clk 0:00:57.1]} 44... Bd7 {[%clk 0:00:17.8]}
45. Qf4 {[%clk 0:00:54.4]} 45... Rg8+ {[%clk 0:00:17.4]} 46. Kf1 {[%clk
0:00:53]} 46... Rg6 {[%clk 0:00:16.2]} 47. Rg3 {[%clk 0:00:43.4]} 47... Rxg3
{[%clk 0:00:12]} 48. hxg3 {[%clk 0:00:42.5]} 48... Bxd4 {[%clk 0:00:11.5]} 49.
Rh2 {[%clk 0:00:28.4]} 49... Be3 {[%clk 0:00:09.2]} 50. Rxh6+ {[%clk 0:00:27.6]}
50... Kg8 {[%clk 0:00:08.4]} 51. Qg4+ {[%clk 0:00:27.7]} 1-0

[Event "Late-Titled-Tuesday-Blitz-April-02-2024"]
[Site "Chess.com"]
[Date "2024.04.02"]
[Round "9"]
[White "azikom"]
[Black "Fengwi"]
[Result "1/2-1/2"]
[WhiteElo "2653"]
[BlackElo "2478"]
[TimeControl "180+1"]
[EndTime "15:42:58 PDT"]
[Termination "Game drawn by repetition"]

1. c4 {[%clk 0:03:00.3]} 1... e6 {[%clk 0:02:51.2]} 2. Nc3 {[%clk 0:03:01.2]}
2... d5 {[%clk 0:02:51.5]} 3. e3 {[%clk 0:03:00.8]} 3... Nf6 {[%clk 0:02:51.1]}
4. Nf3 {[%clk 0:03:01.3]} 4... b6 {[%clk 0:02:39.7]} 5. cxd5 {[%clk 0:03:00.8]}
5... exd5 {[%clk 0:02:39.7]} 6. d4 {[%clk 0:02:59.2]} 6... Bb7 {[%clk
0:02:39.4]} 7. Ne5 {[%clk 0:02:58.4]} 7... Bd6 {[%clk 0:02:34.5]} 8. Bb5+ {[%clk
0:02:58.4]} 8... c6 {[%clk 0:02:34.5]} 9. Bd3 {[%clk 0:02:58.9]} 9... O-O {[%clk
0:02:33.1]} 10. O-O {[%clk 0:02:59.3]} 10... c5 {[%clk 0:02:33.3]} 11. f4 {[%clk
0:02:59.5]} 11... Nc6 {[%clk 0:02:20.9]} 12. Kh1 {[%clk 0:02:47.6]} 12... cxd4
{[%clk 0:01:48.4]} 13. exd4 {[%clk 0:02:44.5]} 13... Nxd4 {[%clk 0:01:48.6]} 14.
Bxh7+ {[%clk 0:02:41.6]} 14... Nxh7 {[%clk 0:01:49.5]} 15. Qxd4 {[%clk
0:02:41.9]} 15... Bc5 {[%clk 0:01:49.2]} 16. Qd3 {[%clk 0:02:41.8]} 16... d4
{[%clk 0:01:42.4]} 17. Ne2 {[%clk 0:02:34.2]} 17... Qd5 {[%clk 0:01:41]} 18. Nf3
{[%clk 0:02:30.2]} 18... Rad8 {[%clk 0:01:35.3]} 19. a3 {[%clk 0:02:21.7]} 19...
a5 {[%clk 0:01:30.7]} 20. Ng3 {[%clk 0:02:16.1]} 20... Rfe8 {[%clk 0:01:20.8]}
21. Bd2 {[%clk 0:02:14.5]} 21... Nf6 {[%clk 0:01:10.8]} 22. b4 {[%clk
0:02:09.6]} 22... axb4 {[%clk 0:01:11.7]} 23. axb4 {[%clk 0:02:09.9]} 23... Bf8
{[%clk 0:01:12.2]} 24. Ra7 {[%clk 0:01:56.1]} 24... Ne4 {[%clk 0:00:59.6]} 25.
Nxe4 {[%clk 0:01:54.1]} 25... Qxe4 {[%clk 0:01:00.5]} 26. Qxe4 {[%clk
0:01:53.4]} 26... Bxe4 {[%clk 0:00:56.9]} 27. h3 {[%clk 0:01:45]} 27... d3
{[%clk 0:00:36.5]} 28. Ne5 {[%clk 0:01:07.7]} 28... f6 {[%clk 0:00:28.4]} 29.
Nc4 {[%clk 0:01:06.4]} 29... b5 {[%clk 0:00:21.8]} 30. Ne3 {[%clk 0:00:53.6]}
30... Ra8 {[%clk 0:00:17.6]} 31. Rfa1 {[%clk 0:00:50.7]} 31... Rxa7 {[%clk
0:00:17.6]} 32. Rxa7 {[%clk 0:00:51]} 32... Bg6 {[%clk 0:00:11.5]} 33. f5 {[%clk
0:00:31.6]} 33... Bf7 {[%clk 0:00:10.9]} 34. Rd7 {[%clk 0:00:15]} 34... Bxb4
{[%clk 0:00:07.6]} 35. Bxb4 {[%clk 0:00:14.5]} 35... Rxe3 {[%clk 0:00:08.1]} 36.
Kh2 {[%clk 0:00:14.6]} 36... Bc4 {[%clk 0:00:04.9]} 37. Rd8+ {[%clk 0:00:14.3]}
37... Kh7 {[%clk 0:00:04.8]} 38. g4 {[%clk 0:00:14.4]} 38... Re2+ {[%clk
0:00:05.2]} 39. Kg3 {[%clk 0:00:14.4]} 39... Rb2 {[%clk 0:00:05.4]} 40. Bc3
{[%clk 0:00:13.9]} 40... Rb3 {[%clk 0:00:04.4]} 41. Bd2 {[%clk 0:00:13.9]} 41...
Rb2 {[%clk 0:00:04.4]} 42. Bc3 {[%clk 0:00:13.9]} 42... Rc2 {[%clk 0:00:04.6]}
43. Bb4 {[%clk 0:00:13.6]} 43... Rb2 {[%clk 0:00:02.9]} 44. Bc3 {[%clk
0:00:13.2]} 1/2-1/2

[Event "Late-Titled-Tuesday-Blitz-April-02-2024"]
[Site "Chess.com"]
[Date "2024.04.02"]
[Round "9"]
[White "Heliosis11"]
[Black "PotapovaM"]
[Result "1-0"]
[WhiteElo "2425"]
[BlackElo "2531"]
[TimeControl "180+1"]
[EndTime "15:43:03 PDT"]
[Termination "Heliosis11 won on time"]

1. e4 {[%clk 0:03:00.9]} 1... c5 {[%clk 0:02:58.4]} 2. Nf3 {[%clk 0:02:56.4]}
2... d6 {[%clk 0:02:58.6]} 3. Bb5+ {[%clk 0:02:55]} 3... Nd7 {[%clk 0:02:57.4]}
4. d4 {[%clk 0:02:54.8]} 4... cxd4 {[%clk 0:02:57.3]} 5. Qxd4 {[%clk 0:02:55.7]}
5... a6 {[%clk 0:02:57.3]} 6. Bxd7+ {[%clk 0:02:56.1]} 6... Bxd7 {[%clk
0:02:57.6]} 7. O-O {[%clk 0:02:56.6]} 7... e5 {[%clk 0:02:56.4]} 8. Qd3 {[%clk
0:02:55]} 8... h6 {[%clk 0:02:57]} 9. c4 {[%clk 0:02:53.7]} 9... b5 {[%clk
0:02:57.8]} 10. Nc3 {[%clk 0:02:54.2]} 10... bxc4 {[%clk 0:02:58.2]} 11. Qxc4
{[%clk 0:02:55.1]} 11... Be6 {[%clk 0:02:58.3]} 12. Nd5 {[%clk 0:02:55.5]} 12...
Rc8 {[%clk 0:02:40.3]} 13. Qd3 {[%clk 0:02:48.7]} 13... Nf6 {[%clk 0:02:34.4]}
14. Nd2 {[%clk 0:02:26]} 14... Bxd5 {[%clk 0:01:55.3]} 15. exd5 {[%clk
0:02:26.9]} 15... Be7 {[%clk 0:01:55.9]} 16. Nc4 {[%clk 0:02:21.5]} 16... O-O
{[%clk 0:01:55.6]} 17. Be3 {[%clk 0:02:16.4]} 17... Qc7 {[%clk 0:01:51.3]} 18.
Rac1 {[%clk 0:02:05.8]} 18... Qb7 {[%clk 0:01:51.3]} 19. Nb6 {[%clk 0:01:58.8]}
19... Rb8 {[%clk 0:01:42.8]} 20. Rc6 {[%clk 0:01:57.7]} 20... Bd8 {[%clk
0:01:18]} 21. Rxd6 {[%clk 0:01:32.8]} 21... Bc7 {[%clk 0:00:43.3]} 22. Rc6
{[%clk 0:01:31.5]} 22... Rfd8 {[%clk 0:00:43.3]} 23. Qb3 {[%clk 0:00:53.3]}
23... a5 {[%clk 0:00:08.4]} 24. Rfc1 {[%clk 0:00:41.1]} 24... a4 {[%clk
0:00:08.3]} 25. Qxa4 {[%clk 0:00:18.1]} 25... Bxb6 {[%clk 0:00:08.6]} 26. Rxb6
{[%clk 0:00:17.1]} 26... Qxd5 {[%clk 0:00:09.1]} 27. Rxb8 {[%clk 0:00:15.8]}
27... Rxb8 {[%clk 0:00:10]} 28. b3 {[%clk 0:00:16]} 28... Rd8 {[%clk 0:00:08.1]}
29. h3 {[%clk 0:00:14.4]} 29... Qd3 {[%clk 0:00:07.7]} 30. Qc4 {[%clk
0:00:13.9]} 30... Qf5 {[%clk 0:00:06.8]} 31. a4 {[%clk 0:00:13.4]} 31... Nd5
{[%clk 0:00:03.8]} 32. Qc5 {[%clk 0:00:11.9]} 32... Nxe3 {[%clk 0:00:03.9]} 33.
Qxe3 {[%clk 0:00:12.2]} 33... Rd4 {[%clk 0:00:03.8]} 34. a5 {[%clk 0:00:11.5]}
34... Re4 {[%clk 0:00:04.1]} 35. Qc3 {[%clk 0:00:10.3]} 35... Qg5 {[%clk
0:00:04.4]} 36. a6 {[%clk 0:00:09.8]} 36... Re2 {[%clk 0:00:04]} 37. a7 {[%clk
0:00:08.4]} 37... Qf4 {[%clk 0:00:03.8]} 38. Rf1 {[%clk 0:00:07.6]} 38... Qe4
{[%clk 0:00:03.5]} 39. Qc8+ {[%clk 0:00:07.6]} 39... Kh7 {[%clk 0:00:04.1]} 40.
a8=Q {[%clk 0:00:08.1]} 1-0

[Event "Late-Titled-Tuesday-Blitz-April-02-2024"]
[Site "Chess.com"]
[Date "2024.04.02"]
[Round "9"]
[White "Kazan28"]
[Black "Hrant_ChessMood"]
[Result "1-0"]
[WhiteElo "2701"]
[BlackElo "2918"]
[TimeControl "180+1"]
[EndTime "15:43:07 PDT"]
[Termination "Kazan28 won on time"]

1. d4 {[%clk 0:02:56.4]} 1... Nf6 {[%clk 0:02:54.1]} 2. c4 {[%clk 0:02:55.8]}
2... g6 {[%clk 0:02:53.2]} 3. Nc3 {[%clk 0:02:55.5]} 3... Bg7 {[%clk 0:02:53.8]}
4. e4 {[%clk 0:02:56]} 4... d6 {[%clk 0:02:54.5]} 5. Nf3 {[%clk 0:02:56.5]} 5...
O-O {[%clk 0:02:54.3]} 6. Be2 {[%clk 0:02:55.2]} 6... c5 {[%clk 0:02:54.9]} 7.
O-O {[%clk 0:02:54.5]} 7... Re8 {[%clk 0:02:55.6]} 8. d5 {[%clk 0:02:47.9]} 8...
e6 {[%clk 0:02:55.6]} 9. h3 {[%clk 0:02:28.7]} 9... exd5 {[%clk 0:02:53.5]} 10.
exd5 {[%clk 0:02:29.6]} 10... Bf5 {[%clk 0:02:48.1]} 11. Bd3 {[%clk 0:02:29.8]}
11... Ne4 {[%clk 0:02:46.8]} 12. Nxe4 {[%clk 0:02:25.9]} 12... Bxe4 {[%clk
0:02:47.7]} 13. Bxe4 {[%clk 0:02:07.6]} 13... Rxe4 {[%clk 0:02:48.6]} 14. Qd3
{[%clk 0:02:07.6]} 14... Re8 {[%clk 0:02:47.1]} 15. Bf4 {[%clk 0:02:03.1]} 15...
Qb6 {[%clk 0:02:07.2]} 16. Rab1 {[%clk 0:01:57.5]} 16... Nd7 {[%clk 0:02:07]}
17. a3 {[%clk 0:01:57.2]} 17... a5 {[%clk 0:01:52.3]} 18. Rfe1 {[%clk
0:01:37.3]} 18... a4 {[%clk 0:01:46.6]} 19. Rxe8+ {[%clk 0:01:21]} 19... Rxe8
{[%clk 0:01:46.4]} 20. b3 {[%clk 0:01:21.3]} 20... Be5 {[%clk 0:01:29.2]} 21.
bxa4 {[%clk 0:01:15.4]} 21... Qc7 {[%clk 0:01:27.6]} 22. Nxe5 {[%clk 0:01:07.4]}
22... dxe5 {[%clk 0:01:25.9]} 23. Be3 {[%clk 0:01:06.8]} 23... Ra8 {[%clk
0:01:21.6]} 24. Qb3 {[%clk 0:00:45.5]} 24... b6 {[%clk 0:01:21.4]} 25. Qb5
{[%clk 0:00:44.7]} 25... Kg7 {[%clk 0:01:03.4]} 26. Bd2 {[%clk 0:00:43.5]} 26...
Ra7 {[%clk 0:00:28.1]} 27. Qc6 {[%clk 0:00:29.9]} 27... Qd8 {[%clk 0:00:20.6]}
28. a5 {[%clk 0:00:19]} 28... bxa5 {[%clk 0:00:20.4]} 29. Rb7 {[%clk 0:00:19.9]}
29... Rxb7 {[%clk 0:00:20.3]} 30. Qxb7 {[%clk 0:00:20.8]} 30... Nf6 {[%clk
0:00:14.2]} 31. Qb5 {[%clk 0:00:13.9]} 31... Ne4 {[%clk 0:00:13.9]} 32. Bxa5
{[%clk 0:00:11]} 32... Qg5 {[%clk 0:00:14]} 33. Qb1 {[%clk 0:00:08.6]} 33... Qf4
{[%clk 0:00:09.9]} 34. Be1 {[%clk 0:00:08.9]} 34... Nd6 {[%clk 0:00:10.1]} 35.
a4 {[%clk 0:00:04.4]} 35... Qxc4 {[%clk 0:00:10]} 36. a5 {[%clk 0:00:05.1]}
36... Qxd5 {[%clk 0:00:03.4]} 37. a6 {[%clk 0:00:05]} 37... Qc6 {[%clk
0:00:01.5]} 38. Qa1 {[%clk 0:00:04.6]} 38... Qa8 {[%clk 0:00:01.4]} 39. Qxe5+
{[%clk 0:00:04]} 39... Kh6 {[%clk 0:00:01.5]} 40. Qxd6 {[%clk 0:00:04.6]} 40...
Qe8 {[%clk 0:00:01.9]} 41. Bd2+ {[%clk 0:00:04.9]} 41... Kh5 {[%clk 0:00:02.5]}
42. Qxc5+ {[%clk 0:00:04.6]} 42... f5 {[%clk 0:00:02.8]} 43. Qe3 {[%clk
0:00:04.2]} 1-0